[Event "DVM U14 2024"]
[Site "Heidelberg"]
[Date "2024.12.27"]
[Round "2"]
[White "Mandalka, Justus"]
[Black "Ensslen, Jakob"]
[Result "1-0"]
[ECO "B72"]
[WhiteElo "2059"]
[BlackElo "1714"]
[Annotator "NA"]
[PlyCount "55"]
[EventDate "2024.12.23"]
[EventType "team-tourn"]
[EventRounds "7"]
[EventCountry "GER"]
[SourceTitle "playchess.com"]
[Source "ChessBase"]
[SourceQuality "1"]
[TimeControl "40/5400+30:1800+30"]

1. e4 {[%emt 0:00:03]} c5 {[%emt 0:00:20]} 2. Nf3 {[%emt 0:00:05]} d6 {[%emt 0:00:04]} 3. d4 {[%emt 0:00:10]} cxd4 {[%emt 0:00:06]} 4. Nxd4 {[%emt 0:00:05]} Nf6 {[%emt 0:00:06]} 5. Nc3 $14 {[%emt 0:00:08]} g6 {[%emt 0:00:05]} 6. h3 {[%emt 0:00:53]} Bg7 {[%emt 0:00:18]} 7. Be3 {[%emt 0:00:21]} O-O {[%emt 0:00:11]} 8. Bc4 {[%emt 0:00:49]} Nc6 {[%emt 0:00:29]} 9. O-O {[%emt 0:01:03]} Nxe4 {[%emt 0:20:08]} 10. Nxe4 {[%emt 0:03:15]} d5 {[%emt 0:00:57]} 11. Nxc6 {[%emt 0:00:09]} bxc6 {[%emt 0:00:31]} 12. Bd3 {[%emt 0:00:12]} dxe4 {[%emt 0:00:16]} 13. Bxe4 {[%emt 0:00:05]} Qc7 {[%emt 0:07:16]} 14. c3 {[%emt 0:00:54]} Be6 {[%emt 0:01:00]} 15. Qf3 {[%emt 0:04:00]} Rfc8 {[%emt 0:06:59]} 16. Bc5 {[%emt 0:03:27]} Rab8 {[%emt 0:02:26]} 17. b3 {[%emt 0:00:17]} h5 {[%emt 0:05:45]} 18. Rfe1 {[%emt 0:02:25]} Kh7 {[%emt 0:01:31]} 19. Qxh5+ {[%emt 0:01:52]} Kg8 {[%emt 0:04:23]} 20. Qf3 {[%emt 0:07:34]} Kh7 {[%emt 0:03:34]} 21. Rad1 {[%emt 0:01:38]} Rb5 {[%emt 0:02:33]} 22. b4 {[%emt 0:02:02]} a5 {[%emt 0:04:09]} 23. a4 {[%emt 0:02:40]} Rbb8 {[%emt 0:01:53]} 24. h4 {[%emt 0:00:59]} Bb3 {[%emt 0:03:02]} 25. Rb1 {[%emt 0:00:09]} Bxa4 {[%emt 0:02:20]} 26. Qxf7 {[%emt 0:00:20]} Rf8 {[%emt 0:01:28]} 27. Qxg6+ {[%emt 0:00:14]} Kh8 {[%emt 0:00:16]} 28. Qh7# {[%emt 0:00:37]} 1-0

[Event "DVM U14 2024"]
[Site "Heidelberg"]
[Date "2024.12.27"]
[Round "2"]
[White "Li, Yunqi"]
[Black "Aweh, Mads"]
[Result "0-1"]
[ECO "D12"]
[WhiteElo "1990"]
[BlackElo "1663"]
[Annotator "RC"]
[PlyCount "118"]
[EventDate "2024.12.23"]
[EventType "team-tourn"]
[EventRounds "7"]
[EventCountry "GER"]
[SourceTitle "playchess.com"]
[Source "ChessBase"]
[SourceQuality "1"]
[TimeControl "40/5400+30:1800+30"]

1. d4 {[%emt 0:00:02]} d5 {[%emt 0:00:10]} 2. c4 {[%emt 0:00:08]} c6 {[%emt 0:00:12]} 3. Nf3 {[%emt 0:00:13]} Nf6 {[%emt 0:00:25]} 4. e3 {[%emt 0:00:06]} Bf5 {[%emt 0:00:14]} 5. Nc3 {[%emt 0:00:21]} e6 {[%emt 0:00:07]} 6. Nh4 {[%emt 0:00:16]} Be4 {[%emt 0:00:13]} 7. f3 {[%emt 0:12:47]} Bg6 {[%emt 0:00:06]} 8. Nxg6 {[%emt 0:00:56]} hxg6 {[%emt 0:00:06]} 9. cxd5 {[%emt 0:09:31]} exd5 {[%emt 0:11:56]} 10. Kf2 {[%emt 0:01:13]} Bd6 {[%emt 0:03:27]} 11. g3 {[%emt 0:00:58]} Qc7 {[%emt 0:02:45]} 12. Bg2 {[%emt 0:00:45]} Rxh2 {[%emt 0:00:47]} 13. f4 {[%emt 0:05:29]} Rxh1 {[%emt 0:03:15]} 14. Qxh1 {[%emt 0:00:11]} Nbd7 {[%emt 0:00:25]} 15. Bd2 {[%emt 0:09:26]} Nb6 {[%emt 0:20:29]} 16. b3 {[%emt 0:02:14]} O-O-O {[%emt 0:07:08]} 17. Rc1 {[%emt 0:06:58]} a6 {[%emt 0:01:32]} 18. a4 {[%emt 0:04:16]} Ba3 {[%emt 0:08:46]} 19. Rc2 {[%emt 0:01:25]} Kb8 {[%emt 0:00:40]} 20. Nb1 {[%emt 0:03:40]} Be7 {[%emt 0:08:58]} 21. Ba5 {[%emt 0:01:25]} Ka7 {[%emt 0:01:12]} 22. Nd2 {[%emt 0:18:47]} Qd7 {[%emt 0:03:35]} 23. Bf3 {[%emt 0:03:53]} Qf5 {[%emt 0:03:04]} 24. Rc1 {[%emt 0:02:34]} g5 {[%emt 0:01:54]} 25. b4 {[%emt 0:06:49]} gxf4 {[%emt 0:04:36]} 26. gxf4 {[%emt 0:00:33]} Rc8 {[%emt 0:03:11]} 27. Bxb6+ {[%emt 0:02:50]} Kxb6 {[%emt 0:00:10]} 28. Rb1 {[%emt 0:01:24]} g5 {[%emt 0:04:26]} 29. Qh2 {[%emt 0:01:49]} gxf4 {[%emt 0:02:03]} 30. Qxf4 {[%emt 0:00:11]} Qxf4 {[%emt 0:00:40]} 31. exf4 {[%emt 0:00:07]} Bd6 {[%emt 0:00:44]} 32. f5 {[%emt 0:00:06]} Rg8 {[%emt 0:02:55]} 33. Be2 {[%emt 0:02:38]} Rg5 {[%emt 0:00:36]} 34. Bd3 {[%emt 0:00:28]} Rg3 {[%emt 0:01:55]} 35. Ke2 {[%emt 0:00:48]} Rh3 {[%emt 0:02:32]} 36. Nf3 {[%emt 0:00:46]} Rg3 {[%emt 0:00:45]} 37. Nd2 {[%emt 0:00:12]} Nh5 {[%emt 0:00:48]} 38. Bc2 {[%emt 0:00:46]} Nf4+ {[%emt 0:00:25]} 39. Ke1 {[%emt 0:01:00]} Rg1+ {[%emt 0:00:40]} 40. Nf1 {[%emt 0:00:10]} Rg2 {[%emt 0:00:59]} 41. Nd2 {[%emt 0:30:29]} Re2+ {[%emt 0:02:24]} 42. Kd1 {[%emt 0:00:00]} Rh2 {[%emt 0:01:17]} 43. Nf1 {[%emt 0:00:00]} Rf2 {[%emt 0:01:42]} 44. Ne3 {[%emt 0:00:00]} Re2 {[%emt 0:01:23]} 45. Rb3 {[%emt 0:00:00]} Rh2 {[%emt 0:02:11]} 46. Nf1 {[%emt 0:00:00]} Rh3 {[%emt 0:02:09]} 47. Ne3 {[%emt 0:00:00]} Be7 {[%emt 0:04:30]} 48. Ng4 {[%emt 0:00:00]} Rxb3 {[%emt 0:01:36]} 49. Bxb3 {[%emt 0:00:00]} Bxb4 {[%emt 0:02:02]} 50. Ne5 {[%emt 0:00:00]} Bc3 {[%emt 0:00:11]} 51. Nf3 {[%emt 0:00:00]} f6 {[%emt 0:01:35]} 52. Kc2 {[%emt 0:00:00]} Bb4 {[%emt 0:00:28]} 53. Nh2 {[%emt 0:00:00]} Ne2 {[%emt 0:01:45]} 54. Kd3 {[%emt 0:00:00]} Ng3 {[%emt 0:01:16]} 55. Ng4 {[%emt 0:00:00]} Be7 {[%emt 0:00:16]} 56. Ne3 {[%emt 0:00:00]} Bf8 {[%emt 0:01:31]} 57. Ng4 {[%emt 0:00:00]} Bg7 {[%emt 0:00:17]} 58. Ne3 {[%emt 0:00:00]} Bh6 {[%emt 0:00:22]} 59. Ng4 {[%emt 0:00:00]} Bg5 {[%emt 0:00:04]} 0-1

[Event "DVM U14 2024"]
[Site "Heidelberg"]
[Date "2024.12.27"]
[Round "2"]
[White "Retzlaff, Nick"]
[Black "Bock, Leonas"]
[Result "1/2-1/2"]
[ECO "B33"]
[WhiteElo "1979"]
[BlackElo "1668"]
[Annotator "RC"]
[PlyCount "144"]
[EventDate "2024.12.23"]
[EventType "team-tourn"]
[EventRounds "7"]
[EventCountry "GER"]
[SourceTitle "playchess.com"]
[Source "ChessBase"]
[SourceQuality "1"]
[TimeControl "40/5400+30:1800+30"]

1. e4 {[%emt 0:00:01]} c5 {[%emt 0:00:05]} 2. Nf3 {[%emt 0:00:01]} Nc6 {[%emt 0:00:08]} 3. d4 {[%emt 0:00:02]} cxd4 {[%emt 0:00:07]} 4. Nxd4 {[%emt 0:00:02]} Nf6 {[%emt 0:00:09]} 5. Nc3 {[%emt 0:00:03]} e5 {[%emt 0:00:09]} 6. Ndb5 {[%emt 0:00:06]} d6 {[%emt 0:00:22]} 7. Bg5 {[%emt 0:00:18]} a6 {[%emt 0:00:23]} 8. Na3 {[%emt 0:00:11]} b5 {[%emt 0:01:00]} 9. Nd5 {[%emt 0:00:02]} Be7 {[%emt 0:00:28]} 10. Bxf6 {[%emt 0:02:38]} Bxf6 {[%emt 0:01:25]} 11. c3 {[%emt 0:00:46]} O-O {[%emt 0:01:04]} 12. Be2 {[%emt 0:03:08]} Bg5 {[%emt 0:05:26]} 13. Nc2 {[%emt 0:02:38]} f5 {[%emt 0:08:44]} 14. exf5 {[%emt 0:01:24]} Bxf5 {[%emt 0:01:53]} 15. Nce3 {[%emt 0:00:40]} Be6 {[%emt 0:04:33]} 16. Bg4 {[%emt 0:01:38]} Bxg4 {[%emt 0:05:21]} 17. Qxg4 {[%emt 0:01:06]} Ra7 {[%emt 0:07:46]} 18. O-O {[%emt 0:05:56]} Raf7 {[%emt 0:16:53]} 19. Rad1 {[%emt 0:02:24]} Bxe3 {[%emt 0:07:32]} 20. Nxe3 {[%emt 0:03:53]} Rf6 {[%emt 0:01:27]} 21. Qe4 {[%emt 0:02:36]} Qc8 {[%emt 0:07:27]} 22. c4 {[%emt 0:08:33]} Nd4 {[%emt 0:03:48]} 23. Nd5 {[%emt 0:02:54]} R6f7 {[%emt 0:07:37]} 24. cxb5 {[%emt 0:02:51]} Qc4 {[%emt 0:01:33]} 25. Nc3 {[%emt 0:03:40]} axb5 {[%emt 0:01:57]} 26. a3 {[%emt 0:03:46]} Rf4 {[%emt 0:07:23]} 27. Qd5+ {[%emt 0:03:28]} Qxd5 {[%emt 0:00:51]} 28. Nxd5 {[%emt 0:00:19]} Ne2+ {[%emt 0:00:23]} 29. Kh1 {[%emt 0:00:17]} Rxf2 {[%emt 0:00:23]} 30. Ne7+ {[%emt 0:00:13]} Kh8 {[%emt 0:00:04]} 31. Rxf2 {[%emt 0:00:15]} Rxf2 {[%emt 0:00:07]} 32. h3 {[%emt 0:01:15]} Nd4 {[%emt 0:02:39]} 33. b4 {[%emt 0:06:58]} Ra2 {[%emt 0:04:37]} 34. Nc8 {[%emt 0:01:24]} Rxa3 {[%emt 0:01:49]} 35. Nxd6 {[%emt 0:00:19]} h6 {[%emt 0:00:49]} 36. Nf7+ {[%emt 0:00:53]} Kg8 {[%emt 0:00:34]} 37. Nxe5 {[%emt 0:00:34]} Nc2 {[%emt 0:00:35]} 38. Rd5 {[%emt 0:02:34]} Nxb4 {[%emt 0:00:35]} 39. Rxb5 {[%emt 0:00:13]} Nd3 {[%emt 0:00:31]} 40. Rb8+ {[%emt 0:01:43]} Kh7 {[%emt 0:00:06]} 41. Nf3 {[%emt 0:30:46]} Nf4 {[%emt 0:30:26]} 42. Rf8 {[%emt 0:01:06]} Ne6 {[%emt 0:00:00]} 43. Rf5 {[%emt 0:00:00]} Ra4 {[%emt 0:00:00]} 44. Rf7 {[%emt 0:00:00]} Ra5 {[%emt 0:00:00]} 45. h4 {[%emt 0:00:00]} Rd5 {[%emt 0:00:00]} 46. Re7 {[%emt 0:00:00]} Nd4 {[%emt 0:00:00]} 47. Ne5 {[%emt 0:00:00]} Nf5 {[%emt 0:00:00]} 48. Re6 {[%emt 0:00:00]} Nxh4 {[%emt 0:00:00]} 49. Ng4 {[%emt 0:00:00]} Rg5 {[%emt 0:00:00]} 50. Ne3 {[%emt 0:00:00]} Nf5 {[%emt 0:00:00]} 51. Nxf5 {[%emt 0:00:00]} Rxf5 {[%emt 0:00:00]} 52. Kh2 {[%emt 0:00:00]} Rh5+ {[%emt 0:00:00]} 53. Kg3 {[%emt 0:00:00]} Rg5+ {[%emt 0:00:00]} 54. Kh3 {[%emt 0:00:00]} Rh5+ {[%emt 0:00:00]} 55. Kg3 {[%emt 0:00:00]} Rg5+ {[%emt 0:00:00]} 56. Kh3 {[%emt 0:00:00]} Rg6 {[%emt 0:00:00]} 57. Re7 {[%emt 0:00:00]} Rb6 {[%emt 0:00:00]} 58. g3 {[%emt 0:00:00]} Kg6 {[%emt 0:00:00]} 59. Re5 {[%emt 0:00:00]} Rf6 {[%emt 0:00:00]} 60. Kg4 {[%emt 0:00:00]} Ra6 {[%emt 0:00:17]} 61. Re4 {[%emt 0:00:00]} h5+ {[%emt 0:02:27]} 62. Kh4 {[%emt 0:00:00]} Ra1 {[%emt 0:01:10]} 63. g4 {[%emt 0:00:00]} hxg4 {[%emt 0:02:36]} 64. Kxg4 {[%emt 0:00:00]} Rg1+ {[%emt 0:00:18]} 65. Kf3 {[%emt 0:00:00]} Kh5 {[%emt 0:02:14]} 66. Re8 {[%emt 0:00:38]} g6 {[%emt 0:01:45]} 67. Rg8 {[%emt 0:01:06]} Ra1 {[%emt 0:00:29]} 68. Rb8 {[%emt 0:00:28]} Ra3+ {[%emt 0:00:29]} 69. Kg2 {[%emt 0:00:11]} g5 {[%emt 0:00:40]} 70. Rb2 {[%emt 0:00:20]} Kh4 {[%emt 0:00:27]} 71. Rb4+ {[%emt 0:00:19]} g4 {[%emt 0:00:09]} 72. Rb2 {[%emt 0:00:04]} Ra4 {[%emt 0:00:41]} 1/2-1/2

[Event "DVM U14 2024"]
[Site "Heidelberg"]
[Date "2024.12.27"]
[Round "2"]
[White "Hempel, Lorenz"]
[Black "Meijers, Janis"]
[Result "1-0"]
[ECO "B11"]
[WhiteElo "1960"]
[BlackElo "1783"]
[Annotator "NA RC"]
[PlyCount "127"]
[EventDate "2024.12.23"]
[EventType "team-tourn"]
[EventRounds "7"]
[EventCountry "GER"]
[SourceTitle "playchess.com"]
[Source "ChessBase"]
[SourceQuality "1"]
[TimeControl "40/5400+30:1800+30"]

1. e4 {[%emt 0:00:01]} c6 {[%emt 0:00:09]} 2. Nc3 {[%emt 0:00:05]} d5 {[%emt 0:00:07]} 3. Nf3 {[%emt 0:00:07]} dxe4 {[%emt 0:00:12]} 4. Nxe4 {[%emt 0:00:10]} Nf6 {[%emt 0:00:04]} 5. Qe2 {[%emt 0:00:26]} Nxe4 {[%emt 0:01:49]} 6. Qxe4 {[%emt 0:00:09]} Qa5 {[%emt 0:04:14]} 7. Bc4 {[%emt 0:03:41]} Bf5 {[%emt 0:03:12]} 8. Qe5 {[%emt 0:04:59]} Qxe5+ {[%emt 0:00:30]} 9. Nxe5 {[%emt 0:00:04]} e6 {[%emt 0:00:16]} 10. d3 {[%emt 0:02:28]} Bd6 {[%emt 0:05:43]} 11. f4 {[%emt 0:04:59]} Nd7 {[%emt 0:00:46]} 12. g4 $15 {[%emt 0:01:41]} Bg6 {[%emt 0:04:04]} 13. Nxg6 {[%emt 0:04:14]} hxg6 {[%emt 0:00:08]} 14. Bd2 {[%emt 0:01:56]} Rh4 {[%emt 0:02:21]} 15. h3 {[%emt 0:04:12]} Nf6 {[%emt 0:02:05]} 16. Kf2 {[%emt 0:02:59]} Nd5 {[%emt 0:01:46]} 17. Kf3 {[%emt 0:00:26]} Kd7 {[%emt 0:01:00]} 18. Be1 {[%emt 0:02:14]} Rh7 {[%emt 0:00:18]} 19. Bg3 {[%emt 0:01:30]} Rah8 {[%emt 0:08:49]} 20. h4 {[%emt 0:00:48]} Be7 {[%emt 0:03:40]} 21. Rh2 {[%emt 0:02:50]} g5 {[%emt 0:05:45]} 22. fxg5 {[%emt 0:03:28]} Bxg5 {[%emt 0:00:25]} 23. Rah1 {[%emt 0:00:26]} Bf6 {[%emt 0:01:12]} 24. Bb3 {[%emt 0:00:08]} b6 {[%emt 0:01:32]} 25. c3 {[%emt 0:04:44]} a5 {[%emt 0:05:46]} 26. c4 {[%emt 0:03:39]} Nb4 {[%emt 0:01:15]} 27. a3 {[%emt 0:00:03]} Na6 {[%emt 0:00:27]} 28. d4 {[%emt 0:03:52]} Kc8 {[%emt 0:04:00]} 29. d5 {[%emt 0:02:10]} Nc5 {[%emt 0:00:56]} 30. Bc2 {[%emt 0:00:11]} g6 {[%emt 0:02:12]} 31. b4 {[%emt 0:02:00]} axb4 {[%emt 0:00:57]} 32. axb4 {[%emt 0:00:07]} Na6 {[%emt 0:00:30]} 33. dxc6 {[%emt 0:02:42]} Nxb4 {[%emt 0:00:17]} 34. Be4 {[%emt 0:00:18]} Bd4 {[%emt 0:08:19]} 35. Rb1 {[%emt 0:02:30]} f5 {[%emt 0:04:08]} 36. gxf5 {[%emt 0:01:40]} gxf5 {[%emt 0:01:25]} 37. Bxf5 {[%emt 0:01:55]} exf5 {[%emt 0:04:54]} 38. Rxb4 {[%emt 0:00:08]} Ra7 {[%emt 0:00:24]} 39. Rb3 {[%emt 0:02:03]} Re8 {[%emt 0:03:34]} 40. Rd2 {[%emt 0:00:58]} Be5 {[%emt 0:02:18]} 41. Re2 {[%emt 0:30:36]} Rae7 {[%emt 0:41:31]} 42. Rbe3 {[%emt 0:00:48]} Bf6 {[%emt 0:00:15]} 43. Rxe7 {[%emt 0:00:09]} Rxe7 {[%emt 0:00:39]} 44. Rxe7 {[%emt 0:00:02]} Bxe7 {[%emt 0:00:12]} 45. h5 {[%emt 0:00:06]} Bf8 {[%emt 0:01:53]} 46. Bf4 {[%emt 0:00:13]} Bg7 {[%emt 0:00:18]} 47. h6 {[%emt 0:00:26]} Bxh6 {[%emt 0:00:37]} 48. Bxh6 {[%emt 0:00:05]} Kc7 {[%emt 0:00:05]} 49. Be3 {[%emt 0:00:29]} Kxc6 {[%emt 0:00:06]} 50. Ke2 {[%emt 0:00:17]} f4 {[%emt 0:00:00]} 51. Bf2 {[%emt 0:00:00]} b5 {[%emt 0:00:00]} 52. c5 {[%emt 0:00:00]} b4 {[%emt 0:00:00]} 53. Kd3 {[%emt 0:00:00]} Kb5 {[%emt 0:00:00]} 54. Kc2 {[%emt 0:00:00]} Kc6 {[%emt 0:00:00]} 55. Kb3 {[%emt 0:00:00]} Kb5 {[%emt 0:00:00]} 56. Bg1 {[%emt 0:00:00]} f3 {[%emt 0:00:00]} 57. Bf2 {[%emt 0:00:00]} Ka5 {[%emt 0:00:00]} 58. Kc4 {[%emt 0:00:00]} Ka6 {[%emt 0:00:00]} 59. Kxb4 {[%emt 0:00:00]} Ka7 {[%emt 0:00:00]} 60. c6+ {[%emt 0:00:00]} Ka8 {[%emt 0:00:00]} 61. Kc5 {[%emt 0:00:00]} Ka7 {[%emt 0:00:00]} 62. Kd6+ {[%emt 0:00:00]} Kb8 {[%emt 0:00:00]} 63. Kd7 {[%emt 0:00:00]} Ka8 {[%emt 0:00:00]} 64. c7 {[%emt 0:00:34]} 1-0

[Event "DVM U14 2024"]
[Site "Heidelberg"]
[Date "2024.12.27"]
[Round "2"]
[White "Steinbrenner, Peter"]
[Black "Ramming, Moritz"]
[Result "0-1"]
[ECO "A00"]
[WhiteElo "1946"]
[BlackElo "1769"]
[Annotator "RC"]
[PlyCount "92"]
[EventDate "2024.12.23"]
[EventType "team-tourn"]
[EventRounds "7"]
[EventCountry "GER"]
[SourceTitle "playchess.com"]
[Source "ChessBase"]
[SourceQuality "1"]
[TimeControl "40/5400+30:1800+30"]

1. b4 {[%emt 0:00:03]} d5 {[%emt 0:00:54]} 2. Bb2 {[%emt 0:00:07]} Nf6 {[%emt 0:00:28]} 3. e3 {[%emt 0:00:32]} Bg4 {[%emt 0:02:04]} 4. Nf3 {[%emt 0:01:26]} Nbd7 {[%emt 0:00:46]} 5. Be2 {[%emt 0:00:48]} e6 {[%emt 0:00:25]} 6. b5 {[%emt 0:01:07]} Bd6 {[%emt 0:00:36]} 7. d4 {[%emt 0:00:52]} O-O {[%emt 0:02:29]} 8. Nbd2 {[%emt 0:00:42]} Re8 {[%emt 0:01:38]} 9. c4 {[%emt 0:05:08]} dxc4 {[%emt 0:03:36]} 10. Nxc4 {[%emt 0:01:12]} Bb4+ {[%emt 0:00:41]} 11. Kf1 {[%emt 0:00:21]} Ne4 {[%emt 0:03:17]} 12. Qb3 {[%emt 0:02:03]} Bf8 {[%emt 0:00:33]} 13. Bd3 {[%emt 0:03:13]} Ndc5 {[%emt 0:06:39]} 14. Qc2 {[%emt 0:05:51]} Nxd3 {[%emt 0:01:10]} 15. Qxd3 {[%emt 0:00:09]} Bf5 {[%emt 0:00:25]} 16. Qe2 {[%emt 0:03:44]} a6 {[%emt 0:02:54]} 17. bxa6 {[%emt 0:03:24]} Rxa6 {[%emt 0:01:30]} 18. Nfe5 {[%emt 0:02:29]} Nd6 {[%emt 0:02:27]} 19. Nd2 {[%emt 0:02:42]} Rb6 {[%emt 0:02:36]} 20. Nb3 {[%emt 0:02:36]} f6 {[%emt 0:00:50]} 21. Nf3 {[%emt 0:03:43]} Bg6 {[%emt 0:06:07]} 22. g3 {[%emt 0:08:44]} Qa8 {[%emt 0:02:17]} 23. Kg2 {[%emt 0:05:48]} Ra6 {[%emt 0:00:51]} 24. Rhc1 {[%emt 0:09:57]} c6 {[%emt 0:05:32]} 25. Bc3 {[%emt 0:03:36]} Ne4 {[%emt 0:02:45]} 26. Be1 {[%emt 0:02:31]} Qa7 {[%emt 0:00:59]} 27. Nh4 {[%emt 0:01:31]} Bf7 {[%emt 0:01:05]} 28. f3 {[%emt 0:01:38]} e5 {[%emt 0:01:23]} 29. Qc2 {[%emt 0:06:28]} Nd6 {[%emt 0:01:52]} 30. dxe5 {[%emt 0:03:31]} Rxe5 {[%emt 0:03:17]} 31. Bf2 {[%emt 0:00:45]} Nc4 {[%emt 0:02:24]} 32. e4 {[%emt 0:00:35]} Ne3+ {[%emt 0:00:37]} 33. Bxe3 {[%emt 0:00:05]} Qxe3 {[%emt 0:00:05]} 34. Nf5 {[%emt 0:00:42]} Qa7 {[%emt 0:00:55]} 35. Rd1 {[%emt 0:02:02]} Ra3 {[%emt 0:05:48]} 36. Rd8 {[%emt 0:05:34]} Rxb3 {[%emt 0:11:23]} 37. Qd2 {[%emt 0:02:22]} Re8 {[%emt 0:03:55]} 38. Rxe8 {[%emt 0:00:51]} Bxe8 {[%emt 0:00:22]} 39. Qd8 {[%emt 0:00:46]} Rb2+ {[%emt 0:03:53]} 40. Kh3 {[%emt 0:00:22]} Bh5 {[%emt 0:03:01]} 41. Nxg7 {[%emt 0:33:49]} Kxg7 {[%emt 0:31:21]} 42. e5 {[%emt 0:01:24]} Qf2 {[%emt 0:03:31]} 43. Qxf6+ {[%emt 0:00:13]} Kg8 {[%emt 0:00:17]} 44. Qg5+ {[%emt 0:00:50]} Bg6 {[%emt 0:00:10]} 45. Rd1 {[%emt 0:00:49]} Qxf3 {[%emt 0:01:13]} 46. Rd8 {[%emt 0:01:13]} Qg2+ {[%emt 0:01:12]} 0-1

[Event "DVM U14 2024"]
[Site "Heidelberg"]
[Date "2024.12.27"]
[Round "2"]
[White "Bauer, Laura Sophie"]
[Black "Klein, Levent"]
[Result "1-0"]
[ECO "B19"]
[WhiteElo "1926"]
[BlackElo "1985"]
[Annotator "RC"]
[PlyCount "114"]
[EventDate "2024.12.23"]
[EventType "team-tourn"]
[EventRounds "7"]
[EventCountry "GER"]
[SourceTitle "playchess.com"]
[Source "ChessBase"]
[SourceQuality "1"]
[TimeControl "40/5400+30:1800+30"]

1. e4 {[%emt 0:00:03]} c6 {[%emt 0:00:02]} 2. d4 {[%emt 0:00:05]} d5 {[%emt 0:00:02]} 3. Nc3 {[%emt 0:00:07]} dxe4 {[%emt 0:00:06]} 4. Nxe4 {[%emt 0:00:06]} Bf5 {[%emt 0:00:04]} 5. Ng3 {[%emt 0:00:07]} Bg6 {[%emt 0:00:04]} 6. h4 {[%emt 0:00:06]} h6 {[%emt 0:00:03]} 7. Nf3 {[%emt 0:00:05]} Nd7 {[%emt 0:00:06]} 8. Bd3 {[%emt 0:00:08]} Bxd3 {[%emt 0:00:04]} 9. Qxd3 {[%emt 0:00:06]} e6 {[%emt 0:00:08]} 10. Bf4 {[%emt 0:00:35]} Ngf6 {[%emt 0:00:09]} 11. O-O-O {[%emt 0:00:34]} Be7 {[%emt 0:01:40]} 12. Kb1 {[%emt 0:01:44]} Qa5 {[%emt 0:05:14]} 13. Nd2 {[%emt 0:12:47]} Nd5 {[%emt 0:03:48]} 14. Nc4 {[%emt 0:02:35]} Nxf4 {[%emt 0:04:19]} 15. Nxa5 {[%emt 0:00:07]} Nxd3 {[%emt 0:00:06]} 16. Rxd3 {[%emt 0:00:15]} O-O-O {[%emt 0:01:08]} 17. Ne4 {[%emt 0:16:27]} Nf6 {[%emt 0:03:58]} 18. Nc3 {[%emt 0:05:54]} Nd5 {[%emt 0:10:44]} 19. Ne2 {[%emt 0:05:28]} Kc7 {[%emt 0:12:25]} 20. g3 {[%emt 0:03:03]} Rd7 {[%emt 0:06:11]} 21. Rhd1 {[%emt 0:07:15]} Rhd8 {[%emt 0:02:37]} 22. Nc4 {[%emt 0:04:00]} Bf6 {[%emt 0:01:44]} 23. Ne5 {[%emt 0:02:59]} Bxe5 {[%emt 0:00:05]} 24. dxe5 {[%emt 0:00:07]} b5 {[%emt 0:03:57]} 25. f4 {[%emt 0:05:06]} a6 {[%emt 0:04:43]} 26. Kc1 {[%emt 0:02:36]} Ne3 {[%emt 0:07:42]} 27. Rxd7+ {[%emt 0:01:09]} Rxd7 {[%emt 0:00:04]} 28. Rxd7+ {[%emt 0:00:07]} Kxd7 {[%emt 0:00:03]} 29. Kd2 {[%emt 0:02:19]} Nf5 {[%emt 0:00:05]} 30. Kd3 {[%emt 0:03:50]} h5 {[%emt 0:02:34]} 31. c4 {[%emt 0:07:46]} c5 {[%emt 0:06:32]} 32. b3 {[%emt 0:03:30]} Kc6 {[%emt 0:00:30]} 33. a3 {[%emt 0:01:59]} Kb6 {[%emt 0:03:13]} 34. Kc3 {[%emt 0:04:33]} bxc4 {[%emt 0:07:51]} 35. Kxc4 {[%emt 0:00:36]} Kc6 {[%emt 0:01:25]} 36. Kd3 {[%emt 0:01:14]} f6 {[%emt 0:01:13]} 37. Ke4 {[%emt 0:06:04]} a5 {[%emt 0:03:26]} 38. exf6 {[%emt 0:03:15]} gxf6 {[%emt 0:00:08]} 39. Kd3 {[%emt 0:00:27]} Kd6 {[%emt 0:05:38]} 40. Ke4 {[%emt 0:00:25]} a4 {[%emt 0:02:58]} 41. bxa4 {[%emt 0:04:04]} c4 {[%emt 0:00:13]} 42. Kf3 {[%emt 0:00:45]} Kc5 {[%emt 0:03:15]} 43. Nc3 {[%emt 0:04:37]} Nd6 {[%emt 0:08:40]} 44. g4 {[%emt 0:12:49]} hxg4+ {[%emt 0:02:38]} 45. Kxg4 {[%emt 0:00:09]} Kd4 {[%emt 0:00:47]} 46. Na2 {[%emt 0:10:46]} e5 {[%emt 0:09:12]} 47. fxe5 {[%emt 0:00:01]} fxe5 {[%emt 0:00:10]} 48. h5 {[%emt 0:00:14]} e4 {[%emt 0:11:42]} 49. h6 {[%emt 0:00:02]} e3 {[%emt 0:00:03]} 50. Nc1 {[%emt 0:00:08]} Kc3 {[%emt 0:00:29]} 51. h7 {[%emt 0:00:22]} Nf7 {[%emt 0:00:08]} 52. Kf3 {[%emt 0:00:09]} Kd2 {[%emt 0:00:12]} 53. a5 {[%emt 0:01:14]} Ng5+ {[%emt 0:01:59]} 54. Kf4 {[%emt 0:00:31]} Nxh7 {[%emt 0:00:50]} 55. a6 {[%emt 0:00:15]} Kxc1 {[%emt 0:00:05]} 56. Kxe3 {[%emt 0:00:02]} Kb2 {[%emt 0:00:02]} 57. a7 c3 {[%emt 0:00:23]} 1-0

[Event "DVM U14 2024"]
[Site "Heidelberg"]
[Date "2024.12.27"]
[Round "2"]
[White "Neumeier, Valentina"]
[Black "Klein, Deniz"]
[Result "1-0"]
[ECO "B23"]
[WhiteElo "1877"]
[BlackElo "1852"]
[Annotator "NA RC"]
[PlyCount "75"]
[EventDate "2024.12.23"]
[EventType "team-tourn"]
[EventRounds "7"]
[EventCountry "GER"]
[SourceTitle "playchess.com"]
[Source "ChessBase"]
[SourceQuality "1"]
[TimeControl "40/5400+30:1800+30"]

1. e4 {[%emt 0:00:02]} c5 {[%emt 0:00:05]} 2. Nc3 {[%emt 0:00:05]} a6 {[%emt 0:00:10]} 3. g3 {[%emt 0:00:09]} b5 {[%emt 0:00:05]} 4. Bg2 {[%emt 0:00:20]} Bb7 {[%emt 0:00:07]} 5. d3 {[%emt 0:00:11]} e6 {[%emt 0:00:13]} 6. Nh3 {[%emt 0:06:25]} d6 {[%emt 0:02:12]} 7. O-O {[%emt 0:10:42]} Nd7 {[%emt 0:07:05]} 8. f4 {[%emt 0:02:05]} b4 {[%emt 0:02:32]} 9. Ne2 {[%emt 0:00:22]} Be7 {[%emt 0:06:42]} 10. f5 {[%emt 0:06:39]} exf5 {[%emt 0:08:19]} 11. Rxf5 {[%emt 0:07:08]} Bf6 {[%emt 0:11:59]} 12. Rf1 {[%emt 0:05:30]} Qb6 {[%emt 0:05:01]} 13. Kh1 {[%emt 0:02:12]} Ne7 {[%emt 0:04:25]} 14. Nhf4 {[%emt 0:02:37]} Ng6 {[%emt 0:06:23]} 15. Nd5 {[%emt 0:05:54]} Bxd5 {[%emt 0:01:23]} 16. exd5 {[%emt 0:00:09]} O-O {[%emt 0:00:57]} 17. c4 {[%emt 0:08:48]} bxc3 {[%emt 0:07:32]} 18. bxc3 {[%emt 0:00:32]} Nde5 {[%emt 0:02:32]} 19. Be3 {[%emt 0:07:34]} Rfe8 {[%emt 0:05:54]} 20. Rb1 {[%emt 0:02:26]} Qa5 {[%emt 0:02:06]} 21. Qd2 {[%emt 0:03:38]} Re7 {[%emt 0:08:55]} 22. Bg1 {[%emt 0:03:43]} Rae8 {[%emt 0:03:07]} 23. Rfe1 {[%emt 0:11:44]} Bg5 {[%emt 0:08:15]} 24. Qxg5 {[%emt 0:07:33]} Nxd3 {[%emt 0:00:10]} 25. Red1 {[%emt 0:00:14]} Rxe2 {[%emt 0:00:28]} 26. Bf1 {[%emt 0:04:11]} h6 {[%emt 0:03:44]} 27. Qf5 {[%emt 0:00:53]} Re1 {[%emt 0:02:44]} 28. Qxd3 {[%emt 0:00:33]} Rxd1 {[%emt 0:00:34]} 29. Rxd1 {[%emt 0:00:01]} Qxa2 {[%emt 0:00:10]} 30. Qxa6 {[%emt 0:00:52]} Qb3 {[%emt 0:00:37]} 31. Qd3 {[%emt 0:00:44]} Ne5 {[%emt 0:00:41]} 32. Rb1 {[%emt 0:01:26]} Qa2 {[%emt 0:00:16]} 33. Qd1 {[%emt 0:00:19]} Ra8 {[%emt 0:00:49]} 34. Qb3 {[%emt 0:00:54]} Qd2 {[%emt 0:00:39]} 35. Rd1 {[%emt 0:00:25]} Qg5 {[%emt 0:00:27]} 36. Qb7 {[%emt 0:00:20]} Ra2 {[%emt 0:00:14]} 37. Qb8+ {[%emt 0:00:07]} Kh7 {[%emt 0:00:07]} 38. Qb1+ {[%emt 0:00:04]} 1-0